bitfinex-derivatives/quotes_BTCF0:USTF0_20250823
["timestamp","ask_amount","ask_price","bid_price","bid_amount"]
[1755916014472,0.99324554,115960.0,115950.0,0.56268893]
[1755916014967,0.99324554,115960.0,115950.0,0.64896133]
[1755916015470,0.99724554,115960.0,115950.0,0.63163893]
[1755916015664,0.91098064,115960.0,115950.0,0.71791133]
[1755916016568,0.86211064,115960.0,115950.0,0.96871133]
[1755916016762,0.86211064,115960.0,115950.0,1.41029756]
[1755916016960,0.00507064,115960.0,115950.0,1.05495168]
[1755916017272,0.00507064,115960.0,115950.0,1.12487164]
[1755916018968,0.09133554,115960.0,115950.0,0.87407164]
[1755916019161,0.13375554,115960.0,115950.0,0.78783129]
[1755916019369,0.13375554,115960.0,115950.0,0.70155889]
[1755916019664,0.15981554,115960.0,115950.0,0.56698]
[1755916019866,0.1597449,115960.0,115950.0,0.25038]
[1755916020470,0.1336849,115960.0,115950.0,0.25038]
[1755916020767,0.1336849,115960.0,115950.0,0.3366523]
[1755916021475,0.1597449,115960.0,115950.0,0.25038]
[1755916022375,0.1336849,115960.0,115950.0,0.3366524]
[1755916022871,0.1336849,115960.0,115950.0,0.25038]
[1755916023471,0.04742,115960.0,115950.0,0.3366523]
[1755916023766,0.04742,115960.0,115950.0,0.5866523]
[1755916023767,0.00507377,115960.0,115950.0,0.5866523]
[1755916023968,0.8664,115970.0,115960.0,0.1870148]
[1755916024166,1.02454586,115980.0,115970.0,0.3391374]
[1755916024369,0.15321586,115980.0,115970.0,0.3391374]
[1755916024568,0.01890136,115980.0,115970.0,0.6999374]
[1755916024769,0.36108,115990.0,115980.0,0.14341]
[1755916025078,0.93836949,116000.0,115990.0,0.3391225]
[1755916025273,0.01929949,116000.0,115990.0,0.6999225]
[1755916025466,0.01929949,116000.0,115990.0,0.9499225]
[1755916025771,0.01629949,116000.0,115990.0,1.11422868]
[1755916025973,0.89078119,116020.0,116010.0,0.2279976]
[1755916025974,0.92295119,116020.0,116010.0,0.2279976]
[1755916026170,0.92295119,116020.0,116010.0,0.6999076]
[1755916026565,1.00917139,116020.0,116010.0,0.6999076]
[1755916026776,1.36997139,116020.0,116010.0,0.25288]
[1755916026966,1.39603139,116020.0,116010.0,0.13785]
[1755916027172,0.2062577,116010.0,116000.0,0.42832]
[1755916027569,0.2062577,116010.0,116000.0,0.57009]
[1755916027765,0.2052577,116010.0,116000.0,0.61368]
[1755916027972,0.1791977,116010.0,116000.0,0.61368]
[1755916028365,0.1791977,116010.0,116000.0,0.61468]
[1755916028577,0.1851977,116010.0,116000.0,0.61468]
[1755916029676,0.1881977,116010.0,116000.0,0.61468]
[1755916030176,0.5750577,116010.0,116000.0,0.20968]
[1755916030376,0.5750577,116010.0,116000.0,0.25388]
[1755916030875,0.5750577,116010.0,116000.0,0.20968]
[1755916031072,0.8250577,116010.0,116000.0,0.12568]
[1755916031273,0.8250577,116010.0,116000.0,0.06852]
[1755916031474,0.8258577,116010.0,116000.0,0.06852]
[1755916033076,1.18120358,116010.0,116000.0,0.001]
[1755916035176,0.03057,115990.0,115980.0,0.14481557]
[1755916035377,0.03057,115990.0,115980.0,0.06752]
[1755916035378,1.35183,115990.0,115980.0,0.06752]
[1755916036085,1.4380726,115990.0,115980.0,0.06752]
[1755916036384,0.1585101,115980.0,115970.0,0.13467]
[1755916036574,0.5644801,115980.0,115970.0,0.20929]
[1755916036975,0.5644801,115980.0,115970.0,0.25288]
[1755916038278,0.5644801,115980.0,115970.0,0.25388]
[1755916038279,0.48423,115980.0,115970.0,0.25388]
[1755916038478,0.09737,115980.0,115970.0,0.25388]
[1755916038684,1.34441,115980.0,115970.0,0.25388]
[1755916039486,1.4306598,115980.0,115970.0,0.25388]
[1755916039980,1.4114298,115980.0,115970.0,0.25388]
[1755916040186,1.4302598,115980.0,115970.0,0.25388]
[1755916040484,1.4563198,115980.0,115970.0,0.25388]
[1755916041878,1.4563198,115980.0,115970.0,0.20968]
[1755916042081,1.4563198,115980.0,115970.0,0.24656557]
[1755916043083,2.06166568,115980.0,115970.0,0.07829557]
[1755916043283,2.06166568,115980.0,115970.0,0.001]
[1755916044885,1.4563198,115980.0,115970.0,0.001]
[1755916045085,0.1516776,115970.0,115950.0,0.14444557]
[1755916045289,0.99167,115960.0,115950.0,0.24238557]
[1755916045488,0.99167,115960.0,115950.0,0.28658557]
[1755916045789,0.99167,115960.0,115950.0,0.33017557]
[1755916046190,1.077935,115960.0,115950.0,0.33017557]
[1755916046483,0.151685,115960.0,115950.0,0.41744797]
[1755916046689,0.113075,115960.0,115950.0,0.41744797]
[1755916047090,0.130835,115960.0,115950.0,0.41744797]
[1755916047494,0.130835,115960.0,115950.0,0.33117557]
[1755916048289,0.130835,115960.0,115950.0,0.33217557]
[1755916048586,0.13941686,115960.0,115950.0,0.33217557]
[1755916048792,0.18202686,115960.0,115950.0,0.33217557]
[1755916049090,0.173445,115960.0,115950.0,0.41844807]
[1755916049294,0.173445,115960.0,115950.0,0.3411525]
[1755916049593,0.173445,115960.0,115950.0,0.25488]
[1755916053095,0.197425,115960.0,115950.0,0.25707]
[1755916053494,0.197425,115960.0,115950.0,0.33436557]
[1755916053789,0.173445,115960.0,115950.0,0.25707]
[1755916054392,0.534245,115960.0,115950.0,0.25707]
[1755916056098,0.558225,115960.0,115950.0,0.25707]
[1755916056292,0.558225,115960.0,115950.0,0.33436557]
[1755916056488,0.558225,115960.0,115950.0,0.28797557]
[1755916056702,0.558225,115960.0,115950.0,0.33436557]
[1755916057097,0.534245,115960.0,115950.0,0.33436557]
[1755916057903,0.534245,115960.0,115950.0,0.25707]
[1755916058899,0.558225,115960.0,115950.0,0.25707]
[1755916068906,0.558225,115960.0,115950.0,0.33460043]
[1755916069302,0.87403528,115960.0,115950.0,0.14705043]
[1755916070199,0.87403528,115960.0,115950.0,0.17273043]
[1755916070401,0.87403528,115960.0,115950.0,0.20336043]
[1755916070809,0.558225,115960.0,115950.0,0.24975043]
[1755916071008,0.87403528,115960.0,115950.0,0.24975043]
[1755916071608,0.87403528,115960.0,115950.0,0.28687043]
[1755916072010,0.87403528,115960.0,115950.0,0.24048043]
[1755916072210,0.87403528,115960.0,115950.0,0.20934]
[1755916072407,0.87403528,115960.0,115950.0,0.28697068]
[1755916072911,0.87403528,115960.0,115950.0,0.32853068]
[1755916074015,0.87403528,115960.0,115950.0,0.14715068]
[1755916074209,0.87403528,115960.0,115950.0,0.20346068]
[1755916074401,0.558225,115960.0,115950.0,0.20346068]
[1755916074708,0.558225,115960.0,115950.0,0.12583]
[1755916074908,0.87403528,115960.0,115950.0,0.23323583]
[1755916075413,0.87403528,115960.0,115950.0,0.12583]
[1755916076114,0.87403528,115960.0,115950.0,0.17222]
[1755916076610,0.517485,115960.0,115950.0,0.41559963]
[1755916076803,1.395605,115960.0,115950.0,0.3379729]
[1755916077004,1.051455,115960.0,115950.0,0.44537873]
[1755916077314,0.8824,115960.0,115950.0,0.9487729]
[1755916077918,0.005,115960.0,115950.0,1.10375833]
[1755916078119,0.90547969,115970.0,115960.0,0.1829754]
[1755916078418,1.02231274,115970.0,115960.0,0.3255554]
[1755916078608,1.02470274,115970.0,115960.0,0.3255554]
[1755916078805,1.02470274,115970.0,115960.0,0.6863554]
[1755916079416,1.02570274,115970.0,115960.0,0.6873554]
[1755916079922,1.02570274,115970.0,115960.0,0.3265554]
[1755916080217,1.006118,115970.0,115960.0,0.6873554]
[1755916080416,1.009118,115970.0,115960.0,0.6883554]
[1755916081015,1.009118,115970.0,115960.0,0.79691987]
[1755916082219,1.009118,115970.0,115960.0,0.6883554]
[1755916083610,1.044538,115970.0,115960.0,0.6883554]
[1755916084715,1.044538,115970.0,115960.0,0.24129]
[1755916084910,1.044538,115970.0,115960.0,0.19895]
[1755916084911,1.36034828,115970.0,115960.0,0.19895]
[1755916085110,1.36034828,115970.0,115960.0,0.16306]
[1755916085111,1.38204828,115970.0,115960.0,0.16306]
[1755916085313,1.066238,115970.0,115960.0,0.2054]
[1755916085514,1.38204828,115970.0,115960.0,0.34985447]
[1755916086820,1.38204828,115970.0,115960.0,0.14382321]
[1755916087328,1.38204828,115970.0,115960.0,0.09643]
[1755916087625,1.7622816,115970.0,115960.0,0.002]
[1755916088120,1.7622816,115970.0,115960.0,0.06635]
[1755916088317,1.7622816,115970.0,115960.0,0.14382443]
[1755916089011,1.7622816,115970.0,115960.0,0.19816443]
[1755916089620,1.69647132,115970.0,115960.0,0.07947443]
[1755916089814,2.0122816,115970.0,115960.0,0.07947443]
[1755916090418,1.69647132,115970.0,115960.0,0.07947443]
[1755916090612,2.0122816,115970.0,115960.0,0.07947443]
[1755916091214,1.69647132,115970.0,115960.0,0.07947443]
[1755916091418,2.0122816,115970.0,115960.0,0.07947443]
[1755916093222,2.0122816,115970.0,115960.0,0.14382443]
[1755916093924,2.0122816,115970.0,115960.0,0.07947443]
[1755916095736,0.0862655,115960.0,115950.0,0.06435]
[1755916095933,0.76287578,115960.0,115950.0,0.06435]
[1755916096141,0.4470655,115960.0,115950.0,0.09443]
[1755916096336,0.76287578,115960.0,115950.0,0.11869]
[1755916096738,0.76287578,115960.0,115950.0,0.16106]
[1755916096938,0.76487578,115960.0,115950.0,0.24029]
[1755916097239,0.4490655,115960.0,115950.0,0.24029]
[1755916097642,0.76487578,115960.0,115950.0,0.24029]
[1755916097832,0.76487578,115960.0,115950.0,0.24129]
[1755916098035,0.76587578,115960.0,115950.0,0.24129]
[1755916100343,0.4500655,115960.0,115950.0,0.24129]
[1755916100643,0.76587578,115960.0,115950.0,0.24129]
[1755916101141,0.76587578,115960.0,115950.0,0.16306]
[1755916101849,0.76587578,115960.0,115950.0,0.24129]
[1755916103748,0.4500655,115960.0,115950.0,0.24129]
[1755916103943,0.76587578,115960.0,115950.0,0.24129]
[1755916104141,0.76587578,115960.0,115950.0,0.19895]
[1755916104338,1.3166255,115960.0,115950.0,0.24129]
[1755916104541,1.63243578,115960.0,115950.0,0.24129]
[1755916104747,1.63243578,115960.0,115950.0,0.3187341]
[1755916105137,0.003,115960.0,115950.0,0.97161728]
[1755916105349,0.003,115960.0,115950.0,0.5783629]
[1755916105542,0.9550654,115960.0,115950.0,0.5775629]
[1755916106641,0.0892654,115960.0,115950.0,0.5775629]
[1755916106843,0.9547854,115960.0,115950.0,0.5775629]
[1755916107443,0.9544654,115960.0,115950.0,0.5775629]
[1755916107643,0.9544654,115960.0,115950.0,0.65500499]
[1755916108754,0.9544654,115960.0,115950.0,0.5775629]
[1755916109249,0.9544654,115960.0,115950.0,0.65501064]
[1755916109446,0.0892654,115960.0,115950.0,0.65501064]
[1755916109647,0.9538654,115960.0,115950.0,0.65501064]
[1755916109958,1.26967568,115960.0,115950.0,0.31873774]
[1755916111153,1.26967568,115960.0,115950.0,0.24129]
[1755916112952,1.26967568,115960.0,115950.0,0.34985447]
[1755916113361,1.63047568,115960.0,115950.0,0.34985447]
[1755916114847,1.63047568,115960.0,115950.0,0.35122447]
[1755916116055,1.63047568,115960.0,115950.0,0.24266]
[1755916116255,1.63047568,115960.0,115950.0,0.32019946]
[1755916117555,1.63047568,115960.0,115950.0,0.24059946]
[1755916118054,1.63047568,115960.0,115950.0,0.28430946]
[1755916118358,1.63047568,115960.0,115950.0,0.32182946]
[1755916119162,1.63047568,115960.0,115950.0,0.24059946]
[1755916119362,1.63047568,115960.0,115950.0,0.14388946]
[1755916119549,1.63047568,115960.0,115950.0,0.20243524]
[1755916119858,1.63047568,115960.0,115950.0,0.27045524]
[1755916120057,1.63047568,115960.0,115950.0,0.22674524]
[1755916120664,1.3146654,115960.0,115950.0,0.22674524]
[1755916120864,1.63047568,115960.0,115950.0,0.22674524]
[1755916121653,1.63047568,115960.0,115950.0,0.27045524]
[1755916121849,1.63047568,115960.0,115950.0,0.22674524]
[1755916122260,1.63047568,115960.0,115950.0,0.27045524]
[1755916122656,1.63047568,115960.0,115950.0,0.22674524]
[1755916126562,1.3146654,115960.0,115950.0,0.27045524]
[1755916126867,1.63047568,115960.0,115950.0,0.27045524]
[1755916127670,1.63047568,115960.0,115950.0,0.22674524]
[1755916128363,1.63047568,115960.0,115950.0,0.27045524]
[1755916128861,1.63047568,115960.0,115950.0,0.22674524]
[1755916129062,1.3146654,115960.0,115950.0,0.27045524]
[1755916129261,1.63047568,115960.0,115950.0,0.34745524]
[1755916129964,1.63047568,115960.0,115950.0,0.30374524]
[1755916130167,1.63047568,115960.0,115950.0,0.23869524]
[1755916130373,1.63047568,115960.0,115950.0,0.14392175]
[1755916130663,1.3146654,115960.0,115950.0,0.14392175]
[1755916130866,1.63047568,115960.0,115950.0,0.14392175]
[1755916131066,1.63047568,115960.0,115950.0,0.19576175]
[1755916131567,1.63047568,115960.0,115950.0,0.27895175]
[1755916131763,1.63047568,115960.0,115950.0,0.31647175]
[1755916131955,1.63047568,115960.0,115950.0,0.23524175]
[1755916132160,1.63047568,115960.0,115950.0,0.14392175]
[1755916132366,1.63047568,115960.0,115950.0,0.16823175]
[1755916132563,1.3146654,115960.0,115950.0,0.16823175]
[1755916132762,1.63047568,115960.0,115950.0,0.16823175]
[1755916133172,1.3146654,115960.0,115950.0,0.19576175]
[1755916133369,1.63047568,115960.0,115950.0,0.19576175]
[1755916133672,1.63047568,115960.0,115950.0,0.17145175]
[1755916133860,1.63047568,115960.0,115950.0,0.14392175]
[1755916134262,1.63047568,115960.0,115950.0,0.17145175]
[1755916134470,1.63047568,115960.0,115950.0,0.19576175]
[1755916136469,1.3146654,115960.0,115950.0,0.19576175]
[1755916136773,1.63047568,115960.0,115950.0,0.19576175]
[1755916136974,1.63047568,115960.0,115950.0,0.16823175]
[1755916137274,1.63047568,115960.0,115950.0,0.19576175]
[1755916137475,1.63047568,115960.0,115950.0,0.19613175]
[1755916137668,1.63047568,115960.0,115950.0,0.002]
[1755916137969,0.0862725,115950.0,115940.0,0.24069035]
[1755916138174,1.09819559,115950.0,115940.0,0.07218497]
[1755916138769,0.46657503,115950.0,115940.0,0.13521497]
[1755916138969,1.09819559,115950.0,115940.0,0.22627818]
[1755916139169,0.78238531,115950.0,115940.0,0.22627818]
[1755916139773,0.78238531,115950.0,115940.0,0.33483342]
[1755916140173,0.78438531,115950.0,115940.0,0.15783525]
[1755916140375,1.10019559,115950.0,115940.0,0.14434742]
[1755916140575,1.09819559,115950.0,115940.0,0.14334742]
[1755916140770,1.10119559,115950.0,115940.0,0.14434742]
[1755916140976,1.10119559,115950.0,115940.0,0.06677204]
[1755916141176,0.46957503,115950.0,115940.0,0.06677204]
[1755916141382,0.46957503,115950.0,115940.0,0.06577204]
[1755916141383,1.09919559,115950.0,115940.0,0.06577204]
[1755916141675,0.78838531,115950.0,115940.0,0.06677204]
[1755916142076,0.78738531,115950.0,115940.0,0.06677204]
[1755916142379,0.0862795,115940.0,115930.0,0.17032538]
[1755916142576,1.3119195,115940.0,115930.0,0.17032538]
[1755916142777,1.62772978,115940.0,115930.0,0.17032538]
[1755916142982,1.62772978,115940.0,115930.0,0.19355538]
[1755916143178,1.62772978,115940.0,115930.0,0.14060538]
[1755916143387,1.62772978,115940.0,115930.0,0.15409436]
[1755916143575,1.62972978,115940.0,115930.0,0.15509436]
[1755916144277,1.62972978,115940.0,115930.0,0.18299436]
[1755916144681,1.63072978,115940.0,115930.0,0.18299436]
[1755916144876,1.63072978,115940.0,115930.0,0.13046898]
[1755916146181,1.62872978,115940.0,115930.0,0.12946898]
[1755916146380,1.63172978,115940.0,115930.0,0.13046898]
[1755916146575,1.63172978,115940.0,115930.0,0.07751898]
[1755916147182,1.63172978,115940.0,115930.0,0.15509436]
[1755916147684,1.63172978,115940.0,115930.0,0.07751898]
[1755916148181,1.3159195,115940.0,115930.0,0.10541898]
[1755916148382,1.63172978,115940.0,115930.0,0.10541898]
[1755916148585,1.63172978,115940.0,115930.0,0.13046898]
[1755916149279,1.63172978,115940.0,115930.0,0.07751898]
[1755916150284,1.63172978,115940.0,115930.0,0.07751968]
[1755916151981,1.63172978,115940.0,115930.0,0.01448968]
[1755916152172,1.63172978,115940.0,115930.0,0.07751968]
[1755916153572,0.76688978,115940.0,115930.0,0.20567968]
[1755916153772,0.76688978,115940.0,115930.0,0.57529506]
[1755916153773,1.26780978,115940.0,115930.0,0.57529506]
[1755916153979,1.62860978,115940.0,115930.0,0.56180538]
[1755916154181,0.9519995,115940.0,115930.0,0.56180538]
[1755916154474,1.26780978,115940.0,115930.0,0.56180538]
[1755916154675,0.0902795,115940.0,115930.0,0.931317]
[1755916154877,0.9513995,115940.0,115930.0,1.00889238]
[1755916155184,1.62800978,115940.0,115930.0,0.48423]
[1755916155382,1.26676978,115940.0,115930.0,0.48423]
[1755916155883,1.26676978,115940.0,115930.0,0.48343]
[1755916155884,1.62756978,115940.0,115930.0,0.48343]
[1755916156279,1.3117595,115940.0,115930.0,0.48343]
[1755916156470,1.62756978,115940.0,115930.0,0.48343]
[1755916157990,1.62756978,115940.0,115930.0,0.23343]
[1755916158795,1.3117595,115940.0,115930.0,0.23343]
[1755916159081,1.62756978,115940.0,115930.0,0.23343]
[1755916159494,1.3117595,115940.0,115930.0,0.23343]
[1755916159781,1.62756978,115940.0,115930.0,0.23343]
[1755916160376,1.62756978,115940.0,115930.0,0.19219]
[1755916160574,1.62756978,115940.0,115930.0,0.23343]
[1755916160783,1.62756978,115940.0,115930.0,0.24691893]
[1755916160989,1.62756978,115940.0,115930.0,0.23343]
[1755916161185,1.62756978,115940.0,115930.0,0.31100538]
[1755916162091,1.62756978,115940.0,115930.0,0.23343]
[1755916162286,1.3117595,115940.0,115930.0,0.23343]
[1755916162491,1.62756978,115940.0,115930.0,0.19219]
[1755916162790,1.62756978,115940.0,115930.0,0.23343]
[1755916162992,1.62756978,115940.0,115930.0,0.15678]
[1755916163185,1.62756978,115940.0,115930.0,0.19802]
[1755916163490,1.62756978,115940.0,115930.0,0.23343]
[1755916164087,1.62756978,115940.0,115930.0,0.11698]
[1755916164288,1.62756978,115940.0,115930.0,0.23343]
[1755916165782,1.3117595,115940.0,115930.0,0.23343]
[1755916165986,1.62756978,115940.0,115930.0,0.23343]
[1755916166187,1.62756978,115940.0,115930.0,0.31100538]
[1755916166994,1.62756978,115940.0,115930.0,0.31098919]
[1755916167495,1.62756978,115940.0,115930.0,0.23343]
[1755916168498,1.62756978,115940.0,115930.0,0.34198524]
[1755916168994,1.62756978,115940.0,115930.0,0.23343]
[1755916169189,1.3117595,115940.0,115930.0,0.23343]
[1755916169403,1.62756978,115940.0,115930.0,0.34198524]
[1755916169796,1.62604978,115940.0,115930.0,0.23343]
[1755916170102,1.62604978,115940.0,115930.0,0.34198524]
[1755916171504,1.62604978,115940.0,115930.0,0.30074524]
[1755916171803,1.62604978,115940.0,115930.0,0.34024524]
[1755916172005,1.62604978,115940.0,115930.0,0.30929404]
[1755916172209,1.3102395,115940.0,115930.0,0.30929404]
[1755916172408,1.62604978,115940.0,115930.0,0.30929404]
[1755916172706,1.62604978,115940.0,115930.0,0.26890404]
[1755916173313,1.62604978,115940.0,115930.0,0.30840404]
[1755916174316,1.3102395,115940.0,115930.0,0.30840404]
[1755916174509,1.62604978,115940.0,115930.0,0.30840404]
[1755916183015,1.62604978,115940.0,115930.0,0.2308]
[1755916183815,1.3102395,115940.0,115930.0,0.2308]
[1755916184016,1.62604978,115940.0,115930.0,0.2308]
[1755916186021,1.62604978,115940.0,115930.0,0.30846746]
[1755916186623,1.62924978,115940.0,115930.0,0.30846746]
[1755916188122,1.62924978,115940.0,115930.0,0.14169746]
[1755916188630,1.3134395,115940.0,115930.0,0.14169746]
[1755916188833,1.62924978,115940.0,115930.0,0.14169746]
[1755916189522,1.87924978,115940.0,115930.0,0.14169746]
[1755916189721,1.87924978,115940.0,115930.0,0.07866746]
[1755916190526,0.29310619,115930.0,115920.0,0.05612]
[1755916190712,0.65390619,115930.0,115920.0,0.05612]
[1755916190916,0.96971647,115930.0,115920.0,0.05612]
[1755916192022,0.97171647,115930.0,115920.0,0.05712]
[1755916192926,0.97271647,115930.0,115920.0,0.05712]
[1755916194325,0.97271647,115930.0,115920.0,0.22172]
[1755916195124,0.65690619,115930.0,115920.0,0.18222]
[1755916195428,0.97271647,115930.0,115920.0,0.18222]
[1755916195728,0.97271647,115930.0,115920.0,0.22172]
[1755916196227,1.86559647,115930.0,115920.0,0.18222]
[1755916196418,1.86559647,115930.0,115920.0,0.1471]
[1755916196614,1.54978619,115930.0,115920.0,0.1471]
[1755916196818,1.86559647,115930.0,115920.0,0.1471]
[1755916197223,1.54978619,115930.0,115920.0,0.18658]
[1755916197526,1.86559647,115930.0,115920.0,0.18658]
[1755916197725,1.86559647,115930.0,115920.0,0.1471]
[1755916197924,1.86559647,115930.0,115920.0,0.05712]
[1755916198321,2.11879737,115930.0,115920.0,0.05712]
[1755916199118,1.54978619,115930.0,115920.0,0.05712]
[1755916199320,2.11879737,115930.0,115920.0,0.08519]
[1755916199519,2.11879737,115930.0,115920.0,0.05712]
[1755916200029,1.54978619,115930.0,115920.0,0.08519]
[1755916200231,2.11879737,115930.0,115920.0,0.10843]
[1755916200524,1.22591737,115930.0,115920.0,0.2213]
[1755916200724,1.10029919,115930.0,115920.0,0.5583943]
[1755916200926,1.38480478,115930.0,115920.0,0.5583943]
[1755916201124,1.47109158,115930.0,115920.0,0.5583943]
[1755916201427,2.11639717,115930.0,115920.0,0.2593898]
[1755916201822,2.11639717,115930.0,115920.0,0.2988698]
[1755916202628,2.11639717,115930.0,115920.0,0.1859998]
[1755916202825,2.11639717,115930.0,115920.0,0.1346898]
[1755916203428,1.54738599,115930.0,115920.0,0.1346898]
[1755916203627,2.11639717,115930.0,115920.0,0.1346898]
[1755916204129,2.11639717,115930.0,115920.0,0.1627598]
[1755916204323,2.11639717,115930.0,115920.0,0.1859998]
[1755916204722,2.11639717,115930.0,115920.0,0.2254798]
[1755916204923,2.11639717,115930.0,115920.0,0.14791]
[1755916205224,1.22591717,115930.0,115920.0,0.2254798]
[1755916205419,0.46916697,115930.0,115920.0,0.2996698]
[1755916205622,1.64195256,115930.0,115920.0,0.2221]
[1755916205819,1.64195256,115930.0,115920.0,0.2996698]
[1755916206731,1.64195256,115930.0,115920.0,0.2988698]
[1755916207530,1.55518576,115930.0,115920.0,0.3851641]
[1755916207829,0.003,115930.0,115920.0,0.59289989]
[1755916208017,0.891,115930.0,115920.0,1.20369989]
[1755916208422,0.891,115930.0,115920.0,1.00545696]
[1755916208827,0.003,115930.0,115920.0,1.00545696]
[1755916209026,2.10717453,115950.0,115940.0,0.3087994]
[1755916209226,3.31156692,115950.0,115940.0,0.22172]
[1755916209424,2.10717453,115950.0,115940.0,0.22252]
[1755916209620,3.31132692,115950.0,115940.0,0.33108487]
[1755916210026,2.63461453,115950.0,115940.0,0.22252]
[1755916210224,2.63561453,115950.0,115940.0,0.22252]
[1755916210429,2.95152692,115950.0,115940.0,0.22252]
[1755916210929,2.93602439,115950.0,115940.0,0.30099352]
[1755916211133,1.6456,115950.0,115940.0,0.74807292]
[1755916211332,2.620112,115950.0,115940.0,0.6705994]
[1755916211732,0.89196,115950.0,115940.0,0.6705994]
[1755916212129,0.005,115950.0,115940.0,0.6705994]
[1755916212336,0.3692469,115980.0,115970.0,0.22172]
[1755916212533,0.9819365,115980.0,115970.0,0.29910168]
[1755916213230,1.29784889,115980.0,115970.0,0.29910168]
[1755916213529,1.30084889,115980.0,115970.0,0.29910168]
[1755916214125,0.9849365,115980.0,115970.0,0.29910168]
[1755916214330,1.64799617,115980.0,115970.0,0.29910168]
[1755916214631,1.65299617,115980.0,115970.0,0.30010168]
[1755916215034,0.9899365,115980.0,115970.0,0.30010168]
[1755916215232,1.65299617,115980.0,115970.0,0.30010168]
[1755916215434,0.9899365,115980.0,115970.0,0.30010168]
[1755916216135,0.9899365,115980.0,115970.0,0.36995447]
[1755916216734,0.1026965,115980.0,115970.0,0.36995447]
[1755916216934,0.9895765,115980.0,115970.0,0.36995447]
[1755916217238,0.9895765,115980.0,115970.0,0.73075447]
[1755916218332,0.9895765,115980.0,115970.0,0.65337279]
[1755916219635,0.89488,115980.0,115970.0,0.73962989]
[1755916219837,0.9782897,115980.0,115970.0,0.73962989]
[1755916221133,0.008,115980.0,115970.0,1.65268956]
[1755916221341,0.89008,115980.0,115970.0,1.15403704]
[1755916221545,0.89008,115980.0,115970.0,1.81709671]
[1755916221746,0.89008,115980.0,115970.0,1.77782431]
[1755916221944,0.008,115980.0,115970.0,1.77782431]
[1755916222143,0.89008,115980.0,115970.0,1.15403704]
[1755916222343,0.89008,115980.0,115970.0,1.77782431]
[1755916223240,0.89008,115980.0,115970.0,1.70044263]
[1755916223440,0.0942497,115980.0,115970.0,1.07585536]
[1755916223645,0.9756897,115980.0,115970.0,1.07585536]
[1755916223847,0.9756897,115980.0,115970.0,0.29257279]
[1755916223848,1.96027697,115980.0,115970.0,0.29257279]
[1755916224247,1.96107697,115980.0,115970.0,0.25309279]
[1755916224450,1.96107697,115980.0,115970.0,0.21787279]
[1755916224746,2.21107697,115980.0,115970.0,0.12839279]
[1755916224948,2.21107697,115980.0,115970.0,0.07085279]
[1755916225245,2.20607697,115980.0,115970.0,0.06985279]
[1755916225451,2.20779697,115980.0,115970.0,0.001]
[1755916225744,2.20779697,115980.0,115970.0,0.05854]
[1755916226043,1.32683697,115980.0,115970.0,0.05854]
[1755916226244,2.20343697,115980.0,115970.0,0.08661]
[1755916226448,2.20643697,115980.0,115970.0,0.10985]
[1755916226743,1.32383697,115980.0,115970.0,0.2332774]
[1755916226945,1.5832897,115980.0,115970.0,0.3089774]
[1755916227243,0.4550497,115980.0,115970.0,0.3089774]
[1755916227547,1.3338897,115980.0,115970.0,0.3089774]
[1755916227742,0.88684,115980.0,115970.0,0.6697774]
[1755916227948,0.008,115980.0,115970.0,0.3089774]
[1755916228248,0.8932,115980.0,115970.0,0.3089774]
[1755916228442,0.8932,115980.0,115970.0,0.6697774]
[1755916228751,0.0722,115990.0,115980.0,0.3068698]
[1755916229053,0.0722,115990.0,115980.0,0.6676698]
[1755916229348,0.17264729,115990.0,115980.0,0.22062]
[1755916229549,0.17264729,115990.0,115980.0,0.18202]
[1755916229945,0.1741019,115990.0,115980.0,0.3078696]
[1755916230147,0.0822,115990.0,115980.0,1.26787491]
[1755916230448,0.96756,115990.0,115980.0,0.64408764]
[1755916230848,0.0822,115990.0,115980.0,0.64408764]
[1755916231049,0.0812,115990.0,115980.0,1.00488764]
[1755916231650,0.0822,115990.0,115980.0,1.00488764]
[1755916231959,0.1741023,115990.0,115980.0,0.22162]
[1755916232537,0.1721023,115990.0,115980.0,0.22262]
[1755916232736,0.5329023,115990.0,115980.0,0.18402]
[1755916232941,0.44318,115990.0,115980.0,0.2702697]
[1755916233140,0.96096,115990.0,115980.0,0.6696697]
[1755916233346,0.0742,115990.0,115980.0,1.54245697]
[1755916233541,0.0772,115990.0,115980.0,1.62967501]
[1755916233943,0.01915683,116010.0,116000.0,0.3068548]
[1755916234147,0.01915683,116010.0,116000.0,0.6684548]
[1755916234350,0.01915683,116010.0,116000.0,1.29224207]
[1755916234552,0.0407,116020.0,116010.0,0.3068474]
[1755916234751,0.9244,116020.0,116010.0,0.3068474]
[1755916235048,0.88588,116020.0,116010.0,0.3068474]
[1755916235948,0.5555371,116030.0,116020.0,0.30684]
[1755916236160,1.4416571,116030.0,116020.0,0.30684]
[1755916236539,0.99388,116030.0,116020.0,0.30684]
[1755916237148,0.56436488,116040.0,116030.0,0.3068324]
[1755916237342,1.44888488,116040.0,116030.0,0.3068324]
[1755916237748,0.38861,116040.0,116030.0,0.3068324]
[1755916237943,0.43279,116040.0,116030.0,0.3068324]
[1755916238149,0.5555249,116040.0,116030.0,0.3068324]
[1755916238643,0.1947249,116040.0,116030.0,0.6676324]
[1755916238852,0.1947249,116040.0,116030.0,0.3068324]
[1755916239050,0.1947249,116040.0,116030.0,0.6676324]
[1755916239250,0.10852,116040.0,116030.0,0.6676324]
[1755916239452,0.11452,116040.0,116030.0,0.6686324]
[1755916239943,0.11234,116040.0,116030.0,0.6686324]
[1755916240150,0.95858,116040.0,116030.0,0.6686324]
[1755916240355,0.9971,116040.0,116030.0,0.73853184]
[1755916240557,1.0031,116040.0,116030.0,0.73953184]
[1755916240856,1.0893049,116040.0,116030.0,0.73953184]
[1755916241056,1.0914849,116040.0,116030.0,0.73953184]
[1755916241253,1.0914849,116040.0,116030.0,0.65331944]
[1755916241652,1.1166649,116040.0,116030.0,0.65331944]
[1755916242756,1.1166649,116040.0,116030.0,0.54243944]
[1755916243358,1.1166649,116040.0,116030.0,0.18163944]
[1755916243559,1.4774649,116040.0,116030.0,0.18163944]
[1755916243758,1.49632769,116040.0,116030.0,0.13200944]
[1755916244058,1.74712769,116040.0,116030.0,0.07189944]
[1755916245960,1.74632769,116040.0,116030.0,0.13200944]
[1755916251667,1.49632769,116040.0,116030.0,0.07189944]
[1755916251853,1.74632769,116040.0,116030.0,0.03119944]
[1755916252163,0.1469303,116020.0,116010.0,0.18268]
[1755916252367,1.0384903,116020.0,116010.0,0.14408]
[1755916252561,1.3992903,116020.0,116010.0,0.08397]
[1755916252864,1.3992903,116020.0,116010.0,0.06011]
[1755916253054,1.3992903,116020.0,116010.0,0.10974]
[1755916253456,1.4032903,116020.0,116010.0,0.11074]